[Event "Titled Tuesday Blitz May 30 Early 2023"]
[White "Zenin, Dmitry"]
[Black "mohsengabr2002"]
[WhiteFideId "4127897"]
[WhiteElo "2215"]
[BlackElo "2253"]
[Result "0-1"]
[Round "06"]
[TimeControl "180+2"]
[Date "2023.05.30"]
[WhiteClock "0:00:35"]
[BlackClock "0:01:00"]

1. d4 {[%clk 0:03:00]}  e6 {[%clk 0:02:58]} 2. c4 {[%clk 0:03:00]}  d5 {[%clk 0:02:58]} 3. Nc3 {[%clk 0:03:00]}  Nf6 {[%clk 0:02:59]} 4. cxd5 {[%clk 0:03:00]}  exd5 {[%clk 0:02:58]} 5. Bg5 {[%clk 0:02:59]}  c6 {[%clk 0:02:58]} 6. e3 {[%clk 0:02:59]}  Bd6 {[%clk 0:02:58]} 7. Bd3 {[%clk 0:02:54]}  Nbd7 {[%clk 0:02:58]} 8. Qc2 {[%clk 0:02:52]}  h6 {[%clk 0:02:58]} 9. Bh4 {[%clk 0:02:51]}  Be7 {[%clk 0:02:55]} 10. Nf3 {[%clk 0:02:38]}  Nh5 {[%clk 0:02:55]} 11. Bxe7 {[%clk 0:02:37]}  Qxe7 {[%clk 0:02:55]} 12. O-O {[%clk 0:02:37]}  O-O {[%clk 0:02:55]} 13. Rae1 {[%clk 0:02:30]}  Nhf6 {[%clk 0:02:50]} 14. Nh4 {[%clk 0:02:08]}  Re8 {[%clk 0:02:39]} 15. Nf5 {[%clk 0:02:05]}  Qb4 {[%clk 0:02:36]} 16. a3 {[%clk 0:01:59]}  Qb6 {[%clk 0:02:32]} 17. b4 {[%clk 0:01:52]}  Nf8 {[%clk 0:02:29]} 18. Ng3 {[%clk 0:01:36]}  a5 {[%clk 0:02:24]} 19. Na4 {[%clk 0:01:34]}  Qd8 {[%clk 0:02:23]} 20. b5 {[%clk 0:01:34]}  N8d7 {[%clk 0:02:15]} 21. bxc6 {[%clk 0:01:32]}  bxc6 {[%clk 0:02:15]} 22. Qxc6 {[%clk 0:01:31]}  Rb8 {[%clk 0:02:14]} 23. Rc1 {[%clk 0:01:25]}  Rb3 {[%clk 0:02:11]} 24. Rc3 {[%clk 0:01:21]}  Bb7 {[%clk 0:02:05]} 25. Qc7 {[%clk 0:01:21]}  Qxc7 {[%clk 0:02:01]} 26. Rxc7 {[%clk 0:01:20]}  Rxd3 {[%clk 0:02:01]} 27. Rxb7 {[%clk 0:01:20]}  Rxa3 {[%clk 0:02:02]} 28. Nb2 {[%clk 0:01:14]}  Rb8 {[%clk 0:01:59]} 29. Rxb8+ {[%clk 0:01:13]}  Nxb8 {[%clk 0:02:00]} 30. Rc1 {[%clk 0:01:11]}  Na6 {[%clk 0:01:59]} 31. Nf5 {[%clk 0:01:08]}  Kh7 {[%clk 0:01:52]} 32. h3 {[%clk 0:01:04]}  g6 {[%clk 0:01:51]} 33. Nd6 {[%clk 0:01:02]}  Kg7 {[%clk 0:01:49]} 34. Rc6 {[%clk 0:01:00]}  Nb4 {[%clk 0:01:48]} 35. Rc7 {[%clk 0:01:00]}  Ra2 {[%clk 0:01:41]} 36. Rxf7+ {[%clk 0:01:00]}  Kg8 {[%clk 0:01:40]} 37. Rxf6 {[%clk 0:01:00]}  Rxb2 {[%clk 0:01:39]} 38. Rxg6+ {[%clk 0:01:00]}  Kf8 {[%clk 0:01:40]} 39. Nb5 {[%clk 0:00:58]}  Nd3 {[%clk 0:01:36]} 40. Nc7 {[%clk 0:00:57]}  a4 {[%clk 0:01:34]} 41. Ra6 {[%clk 0:00:56]}  Ra2 {[%clk 0:01:28]} 42. Nxd5 {[%clk 0:00:56]}  a3 {[%clk 0:01:28]} 43. Nc3 {[%clk 0:00:54]}  Ra1+ {[%clk 0:01:28]} 44. Kh2 {[%clk 0:00:55]}  Nxf2 {[%clk 0:01:22]} 45. d5 {[%clk 0:00:54]}  Ke7 {[%clk 0:01:19]} 46. e4 {[%clk 0:00:53]}  Nd3 {[%clk 0:01:08]} 47. Kg3 {[%clk 0:00:44]}  Nc5 {[%clk 0:01:03]} 48. Ra5 {[%clk 0:00:41]}  Nb3 {[%clk 0:01:02]} 49. Ra6 {[%clk 0:00:39]}  Nc5 {[%clk 0:01:02]} 50. Kf4 {[%clk 0:00:35]}  Nxa6 {[%clk 0:01:00]} 0-1


[Site "https://www.chess.com"]

[Event "Titled Tuesday Blitz May 30 Early 2023"]
[White "De Souza, Cristiano Gomes"]
[Black "Alexikov, Alexander"]
[WhiteFideId "2151758"]
[BlackFideId "14103958"]
[WhiteElo "2068"]
[BlackElo "2186"]
[Result "0-1"]
[Round "06"]
[TimeControl "180+2"]
[Date "2023.05.30"]
[WhiteClock "0:01:25"]
[BlackClock "0:01:16"]

1. d4 {[%clk 0:02:59]}  Nf6 {[%clk 0:02:58]} 2. c4 {[%clk 0:02:59]}  g6 {[%clk 0:02:58]} 3. Nf3 {[%clk 0:03:00]}  Bg7 {[%clk 0:02:58]} 4. Nc3 {[%clk 0:03:01]}  d6 {[%clk 0:02:58]} 5. e4 {[%clk 0:03:01]}  O-O {[%clk 0:02:58]} 6. Be2 {[%clk 0:03:02]}  e5 {[%clk 0:02:58]} 7. O-O {[%clk 0:03:02]}  Na6 {[%clk 0:02:58]} 8. Be3 {[%clk 0:03:01]}  Ng4 {[%clk 0:02:54]} 9. Bg5 {[%clk 0:03:01]}  f6 {[%clk 0:02:54]} 10. Bh4 {[%clk 0:03:01]}  Kh8 {[%clk 0:02:53]} 11. h3 {[%clk 0:03:01]}  Nh6 {[%clk 0:02:52]} 12. d5 {[%clk 0:03:00]}  c5 {[%clk 0:02:51]} 13. Nd2 {[%clk 0:02:59]}  Nc7 {[%clk 0:02:40]} 14. f3 {[%clk 0:02:58]}  Nf7 {[%clk 0:02:32]} 15. a3 {[%clk 0:02:57]}  Bh6 {[%clk 0:02:31]} 16. Bf2 {[%clk 0:02:56]}  b6 {[%clk 0:02:28]} 17. b4 {[%clk 0:02:56]}  Bd7 {[%clk 0:02:25]} 18. Nb3 {[%clk 0:02:51]}  Na6 {[%clk 0:02:16]} 19. b5 {[%clk 0:02:45]}  Nc7 {[%clk 0:02:14]} 20. a4 {[%clk 0:02:46]}  a5 {[%clk 0:02:12]} 21. Bd3 {[%clk 0:02:36]}  f5 {[%clk 0:02:06]} 22. exf5 {[%clk 0:02:36]}  gxf5 {[%clk 0:02:05]} 23. Qe2 {[%clk 0:02:36]}  Qf6 {[%clk 0:02:02]} 24. Na2 {[%clk 0:02:24]}  Rg8 {[%clk 0:01:54]} 25. Kh1 {[%clk 0:02:21]}  Ne8 {[%clk 0:01:47]} 26. Be3 {[%clk 0:02:18]}  Ng7 {[%clk 0:01:44]} 27. Bxh6 {[%clk 0:02:17]}  Qxh6 {[%clk 0:01:42]} 28. Qd2 {[%clk 0:02:04]}  f4 {[%clk 0:01:39]} 29. Rf2 {[%clk 0:02:04]}  Ng5 {[%clk 0:01:38]} 30. Bf1 {[%clk 0:02:00]}  Nh5 {[%clk 0:01:36]} 31. Nc3 {[%clk 0:01:58]}  Nxh3 {[%clk 0:01:16]} 32. gxh3 {[%clk 0:01:25]}  Ng3+ {[%clk 0:01:16]} 0-1


[Site "https://www.chess.com"]

[Event "Titled Tuesday Blitz May 30 Early 2023"]
[White "Pinheiro, Iung Alicio de O."]
[Black "Fudalej, Michal"]
[WhiteFideId "2104350"]
[BlackFideId "1118781"]
[WhiteElo "2283"]
[BlackElo "2088"]
[Result "1-0"]
[Round "06"]
[TimeControl "180+2"]
[Date "2023.05.30"]
[WhiteClock "0:01:25"]
[BlackClock "0:00:25"]

1. d4 {[%clk 0:03:00]}  Nf6 {[%clk 0:02:56]} 2. c4 {[%clk 0:03:00]}  g6 {[%clk 0:02:56]} 3. Nc3 {[%clk 0:02:59]}  Bg7 {[%clk 0:02:56]} 4. e4 {[%clk 0:02:59]}  d6 {[%clk 0:02:56]} 5. Be2 {[%clk 0:02:58]}  O-O {[%clk 0:02:56]} 6. Be3 {[%clk 0:02:57]}  e5 {[%clk 0:02:56]} 7. d5 {[%clk 0:02:57]}  a5 {[%clk 0:02:55]} 8. g4 {[%clk 0:02:57]}  Na6 {[%clk 0:02:55]} 9. g5 {[%clk 0:02:54]}  Ne8 {[%clk 0:02:53]} 10. h4 {[%clk 0:02:55]}  f5 {[%clk 0:02:47]} 11. gxf6 {[%clk 0:02:53]}  Bxf6 {[%clk 0:02:45]} 12. Qd2 {[%clk 0:02:39]}  Bxh4 {[%clk 0:02:26]} 13. Nf3 {[%clk 0:02:35]}  Bf6 {[%clk 0:02:23]} 14. Ng5 {[%clk 0:02:22]}  h5 {[%clk 0:01:54]} 15. O-O-O {[%clk 0:02:19]}  Ng7 {[%clk 0:01:53]} 16. Rdg1 {[%clk 0:02:15]}  Qe8 {[%clk 0:01:45]} 17. Rg2 {[%clk 0:01:56]}  a4 {[%clk 0:01:29]} 18. Rhg1 {[%clk 0:01:55]}  a3 {[%clk 0:01:28]} 19. b3 {[%clk 0:01:52]}  Nc5 {[%clk 0:01:23]} 20. Kb1 {[%clk 0:01:46]}  Kh8 {[%clk 0:00:44]} 21. Bxc5 {[%clk 0:01:39]}  dxc5 {[%clk 0:00:44]} 22. Ne6 {[%clk 0:01:35]}  Nxe6 {[%clk 0:00:35]} 23. Qh6+ {[%clk 0:01:29]}  Kg8 {[%clk 0:00:35]} 24. Rxg6+ {[%clk 0:01:29]}  Ng7 {[%clk 0:00:27]} 25. Rxg7+ {[%clk 0:01:26]}  Bxg7 {[%clk 0:00:25]} 26. Qxg7# {[%clk 0:01:25]} 1-0


[Site "https://www.chess.com"]

[Event "Titled Tuesday Blitz May 30 Early 2023"]
[White "Clawitter, Craig"]
[Black "Do Nascimento,Christian Almeida"]
[WhiteFideId "2023105"]
[BlackFideId "2143801"]
[WhiteElo "2209"]
[BlackElo "2118"]
[Result "0-1"]
[Round "06"]
[TimeControl "180+2"]
[Date "2023.05.30"]
[WhiteClock "0:00:06"]
[BlackClock "0:01:34"]

1. e4 {[%clk 0:03:00]}  c5 {[%clk 0:02:59]} 2. Nf3 {[%clk 0:03:00]}  d6 {[%clk 0:02:59]} 3. d4 {[%clk 0:03:01]}  cxd4 {[%clk 0:03:00]} 4. Nxd4 {[%clk 0:03:02]}  Nf6 {[%clk 0:02:59]} 5. Nc3 {[%clk 0:03:02]}  g6 {[%clk 0:02:59]} 6. Be3 {[%clk 0:03:02]}  Bg7 {[%clk 0:03:00]} 7. f3 {[%clk 0:03:03]}  O-O {[%clk 0:03:00]} 8. Qd2 {[%clk 0:03:03]}  Nc6 {[%clk 0:03:01]} 9. Bc4 {[%clk 0:03:04]}  Bd7 {[%clk 0:03:01]} 10. O-O-O {[%clk 0:03:03]}  Ne5 {[%clk 0:03:01]} 11. Bb3 {[%clk 0:03:04]}  Qa5 {[%clk 0:03:02]} 12. Kb1 {[%clk 0:03:00]}  Rfc8 {[%clk 0:03:01]} 13. h4 {[%clk 0:02:46]}  Rxc3 {[%clk 0:03:01]} 14. Qxc3 {[%clk 0:02:43]}  Qxc3 {[%clk 0:03:01]} 15. bxc3 {[%clk 0:02:44]}  Rc8 {[%clk 0:03:01]} 16. Ne2 {[%clk 0:02:38]}  a5 {[%clk 0:03:00]} 17. a4 {[%clk 0:02:27]}  b5 {[%clk 0:02:56]} 18. axb5 {[%clk 0:02:20]}  Bxb5 {[%clk 0:02:57]} 19. Nd4 {[%clk 0:02:12]}  Be8 {[%clk 0:02:57]} 20. Kb2 {[%clk 0:02:01]}  a4 {[%clk 0:02:57]} 21. Ba2 {[%clk 0:01:58]}  a3+ {[%clk 0:02:46]} 22. Kc1 {[%clk 0:01:52]}  Rxc3 {[%clk 0:02:45]} 23. Rhe1 {[%clk 0:01:33]}  Ba4 {[%clk 0:02:22]} 24. Kb1 {[%clk 0:00:59]}  Nfd7 {[%clk 0:02:01]} 25. Bb3 {[%clk 0:00:49]}  Bxb3 {[%clk 0:01:52]} 26. Nxb3 {[%clk 0:00:46]}  a2+ {[%clk 0:01:49]} 27. Kxa2 {[%clk 0:00:16]}  Rxc2+ {[%clk 0:01:49]} 28. Kb1 {[%clk 0:00:16]}  Rxg2 {[%clk 0:01:49]} 29. Bd4 {[%clk 0:00:14]}  Nxf3 {[%clk 0:01:43]} 30. Bxg7 {[%clk 0:00:14]}  Nxe1 {[%clk 0:01:42]} 31. Bc3 {[%clk 0:00:10]}  Nf3 {[%clk 0:01:37]} 32. h5 {[%clk 0:00:11]}  gxh5 {[%clk 0:01:36]} 33. Rh1 {[%clk 0:00:12]}  Rg1+ {[%clk 0:01:34]} 34. Rxg1+ {[%clk 0:00:11]}  Nxg1 {[%clk 0:01:35]} 35. Nd4 {[%clk 0:00:11]}  e6 {[%clk 0:01:33]} 36. Kc2 {[%clk 0:00:09]}  h4 {[%clk 0:01:34]} 37. Kd3 {[%clk 0:00:08]}  h3 {[%clk 0:01:34]} 38. Ne2 {[%clk 0:00:07]}  Nxe2 {[%clk 0:01:34]} 39. Kxe2 {[%clk 0:00:06]}  h2 {[%clk 0:01:34]} 0-1


[Site "https://www.chess.com"]

[Event "Titled Tuesday Blitz May 30 Early 2023"]
[White "ArrestingPieces"]
[Black "Larina, Maria"]
[BlackFideId "24113182"]
[WhiteElo "2519"]
[BlackElo "1848"]
[Result "1-0"]
[Round "06"]
[TimeControl "180+2"]
[Date "2023.05.30"]
[WhiteClock "0:00:29"]
[BlackClock "0:00:15"]

1. d4 {[%clk 0:03:00]}  f5 {[%clk 0:02:58]} 2. Nf3 {[%clk 0:02:58]}  Nf6 {[%clk 0:02:57]} 3. Bf4 {[%clk 0:02:59]}  d6 {[%clk 0:02:57]} 4. e3 {[%clk 0:02:57]}  g6 {[%clk 0:02:57]} 5. h4 {[%clk 0:02:52]}  Bg7 {[%clk 0:02:56]} 6. Be2 {[%clk 0:02:53]}  O-O {[%clk 0:02:52]} 7. c4 {[%clk 0:02:52]}  Nc6 {[%clk 0:02:41]} 8. Nc3 {[%clk 0:02:49]}  h6 {[%clk 0:02:22]} 9. d5 {[%clk 0:02:13]}  Nb8 {[%clk 0:02:13]} 10. h5 {[%clk 0:02:13]}  g5 {[%clk 0:02:12]} 11. Bxg5 {[%clk 0:02:12]}  hxg5 {[%clk 0:02:13]} 12. h6 {[%clk 0:02:12]}  Bh8 {[%clk 0:02:13]} 13. Nxg5 {[%clk 0:02:11]}  Qe8 {[%clk 0:02:03]} 14. e4 {[%clk 0:01:44]}  Qg6 {[%clk 0:01:59]} 15. f4 {[%clk 0:01:34]}  fxe4 {[%clk 0:01:53]} 16. Qd2 {[%clk 0:01:20]}  Nh7 {[%clk 0:00:59]} 17. Bh5 {[%clk 0:01:05]}  Qf5 {[%clk 0:00:55]} 18. g3 {[%clk 0:00:44]}  Bf6 {[%clk 0:00:28]} 19. g4 {[%clk 0:00:35]}  Qd7 {[%clk 0:00:24]} 20. Nxh7 {[%clk 0:00:32]}  Kxh7 {[%clk 0:00:24]} 21. g5 {[%clk 0:00:32]}  Bh8 {[%clk 0:00:16]} 22. g6+ {[%clk 0:00:31]}  Kg8 {[%clk 0:00:16]} 23. g7 {[%clk 0:00:29]}  Bxg7 {[%clk 0:00:16]} 24. hxg7 {[%clk 0:00:30]}  Kxg7 {[%clk 0:00:17]} 25. Qg2+ {[%clk 0:00:29]}  Kf6 {[%clk 0:00:15]} 26. Qg6# {[%clk 0:00:29]} 1-0


[Site "https://www.chess.com"]

[Event "Titled Tuesday Blitz May 30 Early 2023"]
[White "Jegorovas, Aleksandras"]
[Black "Borodavkin, Anatoly"]
[WhiteFideId "12801950"]
[BlackFideId "14150662"]
[WhiteElo "2247"]
[BlackElo "1991"]
[Result "1-0"]
[Round "06"]
[TimeControl "180+2"]
[Date "2023.05.30"]
[WhiteClock "0:01:44"]
[BlackClock "0:01:17"]

1. d4 {[%clk 0:02:49]}  d5 {[%clk 0:02:58]} 2. c4 {[%clk 0:02:49]}  Nc6 {[%clk 0:02:59]} 3. Nf3 {[%clk 0:02:46]}  Bg4 {[%clk 0:02:58]} 4. Nc3 {[%clk 0:02:45]}  e6 {[%clk 0:02:57]} 5. Bf4 {[%clk 0:02:44]}  Nf6 {[%clk 0:02:45]} 6. e3 {[%clk 0:02:41]}  Bd6 {[%clk 0:02:42]} 7. Bg3 {[%clk 0:02:40]}  O-O {[%clk 0:02:41]} 8. Be2 {[%clk 0:02:37]}  h6 {[%clk 0:02:40]} 9. O-O {[%clk 0:02:34]}  Bxg3 {[%clk 0:02:38]} 10. hxg3 {[%clk 0:02:34]}  dxc4 {[%clk 0:02:26]} 11. Bxc4 {[%clk 0:02:33]}  Re8 {[%clk 0:02:18]} 12. Be2 {[%clk 0:02:26]}  Nd5 {[%clk 0:02:13]} 13. Rc1 {[%clk 0:02:23]}  Nce7 {[%clk 0:02:11]} 14. Ne4 {[%clk 0:02:22]}  c6 {[%clk 0:02:05]} 15. Nc5 {[%clk 0:02:20]}  Qb6 {[%clk 0:01:54]} 16. Ne5 {[%clk 0:02:16]}  Bxe2 {[%clk 0:01:53]} 17. Qxe2 {[%clk 0:02:15]}  a5 {[%clk 0:01:45]} 18. Qf3 {[%clk 0:02:08]}  Nf6 {[%clk 0:01:41]} 19. Ncd7 {[%clk 0:02:03]}  Nxd7 {[%clk 0:01:23]} 20. Qxf7+ {[%clk 0:01:57]}  Kh7 {[%clk 0:01:23]} 21. Nxd7 {[%clk 0:01:56]}  Qxb2 {[%clk 0:01:17]} 22. Nf6+ {[%clk 0:01:44]} 1-0


[Site "https://www.chess.com"]

[Event "Titled Tuesday Blitz May 30 Early 2023"]
[White "Janaszak, Dawid"]
[Black "KSho99"]
[WhiteFideId "1119206"]
[WhiteElo "2220"]
[BlackElo "2180"]
[Result "1-0"]
[Round "06"]
[TimeControl "180+2"]
[Date "2023.05.30"]
[WhiteClock "0:02:38"]
[BlackClock "0:00:02"]

1. e4 {[%clk 0:03:00]}  e6 {[%clk 0:02:58]} 2. f4 {[%clk 0:02:57]}  d5 {[%clk 0:02:58]} 3. e5 {[%clk 0:02:57]}  c5 {[%clk 0:02:52]} 4. Nf3 {[%clk 0:02:57]}  Nc6 {[%clk 0:02:52]} 5. c3 {[%clk 0:02:53]}  Nh6 {[%clk 0:02:48]} 6. Bd3 {[%clk 0:02:51]}  Qb6 {[%clk 0:02:36]} 7. Bc2 {[%clk 0:02:46]}  Be7 {[%clk 0:02:29]} 8. O-O {[%clk 0:02:45]}  Nf5 {[%clk 0:02:25]} 9. Kh1 {[%clk 0:02:44]}  h5 {[%clk 0:02:18]} 10. Bxf5 {[%clk 0:02:44]}  exf5 {[%clk 0:02:18]} 11. d4 {[%clk 0:02:44]}  cxd4 {[%clk 0:02:10]} 12. cxd4 {[%clk 0:02:45]}  Be6 {[%clk 0:02:00]} 13. Nc3 {[%clk 0:02:45]}  g6 {[%clk 0:01:58]} 14. Be3 {[%clk 0:02:44]}  Qxb2 {[%clk 0:01:44]} 15. Na4 {[%clk 0:02:44]}  Qa3 {[%clk 0:01:36]} 16. Bg1 {[%clk 0:02:44]}  b6 {[%clk 0:00:56]} 17. Ng5 {[%clk 0:02:44]}  Bxg5 {[%clk 0:00:53]} 18. fxg5 {[%clk 0:02:44]}  Qe7 {[%clk 0:00:38]} 19. Rc1 {[%clk 0:02:43]}  Na5 {[%clk 0:00:34]} 20. Be3 {[%clk 0:02:42]}  Nc4 {[%clk 0:00:33]} 21. Bf4 {[%clk 0:02:43]}  O-O {[%clk 0:00:29]} 22. Nc3 {[%clk 0:02:43]}  Rfd8 {[%clk 0:00:28]} 23. h3 {[%clk 0:02:43]}  Rac8 {[%clk 0:00:22]} 24. Nb5 {[%clk 0:02:44]}  a6 {[%clk 0:00:19]} 25. Nd6 {[%clk 0:02:44]}  Nxd6 {[%clk 0:00:19]} 26. exd6 {[%clk 0:02:45]}  Qd7 {[%clk 0:00:18]} 27. Rc7 {[%clk 0:02:44]}  Rxc7 {[%clk 0:00:16]} 28. dxc7 {[%clk 0:02:45]}  Rc8 {[%clk 0:00:15]} 29. Qc1 {[%clk 0:02:46]}  Qa4 {[%clk 0:00:11]} 30. Re1 {[%clk 0:02:42]}  Qxa2 {[%clk 0:00:09]} 31. Rxe6 {[%clk 0:02:38]}  fxe6 {[%clk 0:00:08]} 32. Qc6 {[%clk 0:02:39]}  Qc4 {[%clk 0:00:04]} 33. Qxe6+ {[%clk 0:02:38]}  Kg7 {[%clk 0:00:03]} 34. Be5+ {[%clk 0:02:38]}  Kh7 {[%clk 0:00:02]} 35. Qf7# {[%clk 0:02:38]} 1-0


[Site "https://www.chess.com"]

[Event "Titled Tuesday Blitz May 30 Early 2023"]
[White "Mayeregger, Arnold"]
[Black "Tarnowska, Aleksandra"]
[WhiteFideId "3705226"]
[BlackFideId "1180967"]
[WhiteElo "2038"]
[BlackElo "1776"]
[Result "1-0"]
[Round "06"]
[TimeControl "180+2"]
[Date "2023.05.30"]
[WhiteClock "0:01:11"]
[BlackClock "0:00:00"]

1. c4 {[%clk 0:03:00]}  e5 {[%clk 0:03:00]} 2. Nc3 {[%clk 0:03:01]}  Nf6 {[%clk 0:02:59]} 3. g3 {[%clk 0:03:01]}  Bb4 {[%clk 0:03:00]} 4. Bg2 {[%clk 0:03:01]}  O-O {[%clk 0:03:00]} 5. e4 {[%clk 0:03:01]}  d6 {[%clk 0:02:48]} 6. Nge2 {[%clk 0:03:01]}  Nc6 {[%clk 0:02:47]} 7. h3 {[%clk 0:03:00]}  Be6 {[%clk 0:02:32]} 8. d3 {[%clk 0:02:59]}  Nd4 {[%clk 0:02:32]} 9. O-O {[%clk 0:02:58]}  Bc5 {[%clk 0:02:02]} 10. Kh2 {[%clk 0:02:56]}  Qd7 {[%clk 0:01:57]} 11. f4 {[%clk 0:02:55]}  exf4 {[%clk 0:01:18]} 12. gxf4 {[%clk 0:02:54]}  Qe7 {[%clk 0:01:17]} 13. f5 {[%clk 0:02:39]}  Bd7 {[%clk 0:01:18]} 14. Bg5 {[%clk 0:02:38]}  h6 {[%clk 0:01:17]} 15. Bxf6 {[%clk 0:02:33]}  Qxf6 {[%clk 0:01:17]} 16. Nd5 {[%clk 0:02:33]}  Qe5+ {[%clk 0:01:03]} 17. Kh1 {[%clk 0:02:34]}  c6 {[%clk 0:01:00]} 18. Ndf4 {[%clk 0:02:30]}  Nxe2 {[%clk 0:00:45]} 19. Qxe2 {[%clk 0:02:29]}  Bd4 {[%clk 0:00:41]} 20. Nh5 {[%clk 0:02:25]}  d5 {[%clk 0:00:32]} 21. f6 {[%clk 0:02:13]}  g6 {[%clk 0:00:27]} 22. Nf4 {[%clk 0:01:59]}  dxc4 {[%clk 0:00:22]} 23. dxc4 {[%clk 0:01:58]}  Qxf6 {[%clk 0:00:17]} 24. Rad1 {[%clk 0:01:51]}  Be5 {[%clk 0:00:14]} 25. Nd3 {[%clk 0:01:25]}  Qh4 {[%clk 0:00:04]} 26. Nxe5 {[%clk 0:01:24]}  Bxh3 {[%clk 0:00:04]} 27. Bxh3 {[%clk 0:01:23]}  Qxh3+ {[%clk 0:00:05]} 28. Qh2 {[%clk 0:01:23]}  Qe6 {[%clk 0:00:05]} 29. Ng4 {[%clk 0:01:22]}  Qxe4+ {[%clk 0:00:05]} 30. Qg2 {[%clk 0:01:21]}  Qe6 {[%clk 0:00:04]} 31. Nxh6+ {[%clk 0:01:20]}  Kg7 {[%clk 0:00:04]} 32. Nf5+ {[%clk 0:01:20]}  Kh7 {[%clk 0:00:03]} 33. Rde1 {[%clk 0:01:14]}  Qxc4 {[%clk 0:00:00]} 34. Re4 {[%clk 0:01:11]} 1-0


[Site "https://www.chess.com"]

[Event "Titled Tuesday Blitz May 30 Early 2023"]
[White "Sharan, Rao"]
[Black "Brown, Raehanna"]
[WhiteFideId "5073464"]
[BlackFideId "7402740"]
[WhiteElo "2231"]
[BlackElo "1655"]
[Result "1-0"]
[Round "06"]
[TimeControl "180+2"]
[Date "2023.05.30"]
[WhiteClock "0:00:05"]
[BlackClock "0:00:16"]

1. d4 {[%clk 0:02:30]}  Nf6 {[%clk 0:02:57]} 2. Nc3 {[%clk 0:02:24]}  d5 {[%clk 0:02:56]} 3. Bf4 {[%clk 0:02:22]}  c6 {[%clk 0:02:53]} 4. e3 {[%clk 0:02:19]}  e6 {[%clk 0:02:52]} 5. f3 {[%clk 0:02:18]}  Bd6 {[%clk 0:02:52]} 6. Bxd6 {[%clk 0:01:58]}  Qxd6 {[%clk 0:02:53]} 7. Nge2 {[%clk 0:01:54]}  O-O {[%clk 0:02:46]} 8. Qd3 {[%clk 0:01:43]}  b6 {[%clk 0:02:44]} 9. g4 {[%clk 0:01:42]}  Ba6 {[%clk 0:02:39]} 10. Qd2 {[%clk 0:01:42]}  Nbd7 {[%clk 0:02:37]} 11. O-O-O {[%clk 0:01:38]}  Rab8 {[%clk 0:02:30]} 12. h4 {[%clk 0:01:35]}  c5 {[%clk 0:02:28]} 13. h5 {[%clk 0:01:30]}  b5 {[%clk 0:02:15]} 14. g5 {[%clk 0:01:25]}  b4 {[%clk 0:02:04]} 15. Na4 {[%clk 0:01:10]}  Ne8 {[%clk 0:01:51]} 16. dxc5 {[%clk 0:01:09]}  Nxc5 {[%clk 0:01:49]} 17. Nxc5 {[%clk 0:01:10]}  Qxc5 {[%clk 0:01:48]} 18. Nd4 {[%clk 0:01:02]}  Bxf1 {[%clk 0:01:44]} 19. Rdxf1 {[%clk 0:01:03]}  Nd6 {[%clk 0:01:43]} 20. g6 {[%clk 0:00:58]}  Nc4 {[%clk 0:01:30]} 21. gxh7+ {[%clk 0:00:57]}  Kh8 {[%clk 0:01:29]} 22. Qd3 {[%clk 0:00:49]}  Rfc8 {[%clk 0:01:08]} 23. h6 {[%clk 0:00:40]}  g6 {[%clk 0:01:05]} 24. Rfg1 {[%clk 0:00:25]}  e5 {[%clk 0:00:45]} 25. Rxg6 {[%clk 0:00:11]}  fxg6 {[%clk 0:00:32]} 26. Qxg6 {[%clk 0:00:12]}  Qe7 {[%clk 0:00:33]} 27. Nf5 {[%clk 0:00:08]}  Qxh7 {[%clk 0:00:20]} 28. Qf6+ {[%clk 0:00:07]}  Kg8 {[%clk 0:00:16]} 29. Rg1+ {[%clk 0:00:07]}  Qg7 {[%clk 0:00:16]} 30. Qxg7# {[%clk 0:00:05]} 1-0


[Site "https://www.chess.com"]

[Event "Titled Tuesday Blitz May 30 Early 2023"]
[White "Herman, Daniel"]
[Black "zano2023"]
[WhiteFideId "30935008"]
[WhiteElo "1897"]
[BlackElo "2160"]
[Result "1-0"]
[Round "06"]
[TimeControl "180+2"]
[Date "2023.05.30"]
[WhiteClock "0:00:15"]
[BlackClock "0:00:10"]

1. d4 {[%clk 0:03:00]}  e5 {[%clk 0:02:59]} 2. dxe5 {[%clk 0:03:00]}  d6 {[%clk 0:03:00]} 3. Nf3 {[%clk 0:02:58]}  Bg4 {[%clk 0:02:59]} 4. Bg5 {[%clk 0:02:48]}  Qd7 {[%clk 0:02:58]} 5. Nc3 {[%clk 0:02:38]}  Nc6 {[%clk 0:02:57]} 6. e4 {[%clk 0:02:23]}  Nxe5 {[%clk 0:02:35]} 7. Nxe5 {[%clk 0:02:22]}  dxe5 {[%clk 0:02:34]} 8. Be2 {[%clk 0:02:16]}  Qxd1+ {[%clk 0:02:27]} 9. Rxd1 {[%clk 0:02:17]}  Bxe2 {[%clk 0:02:27]} 10. Kxe2 {[%clk 0:02:17]}  c6 {[%clk 0:02:27]} 11. Rd3 {[%clk 0:02:11]}  f6 {[%clk 0:02:26]} 12. Be3 {[%clk 0:02:11]}  Bb4 {[%clk 0:01:57]} 13. Rhd1 {[%clk 0:02:09]}  Ne7 {[%clk 0:01:56]} 14. Rd7 {[%clk 0:02:07]}  b6 {[%clk 0:01:52]} 15. Rb7 {[%clk 0:02:04]}  O-O {[%clk 0:01:38]} 16. Rdd7 {[%clk 0:02:03]}  Rf7 {[%clk 0:01:24]} 17. Rxa7 {[%clk 0:02:02]}  Rxa7 {[%clk 0:01:16]} 18. Rxa7 {[%clk 0:02:03]}  Bxc3 {[%clk 0:01:13]} 19. bxc3 {[%clk 0:02:02]}  c5 {[%clk 0:01:12]} 20. a4 {[%clk 0:01:50]}  Nc6 {[%clk 0:01:06]} 21. Ra8+ {[%clk 0:01:46]}  Rf8 {[%clk 0:01:06]} 22. Rxf8+ {[%clk 0:01:42]}  Kxf8 {[%clk 0:01:05]} 23. Kd3 {[%clk 0:01:39]}  Na5 {[%clk 0:01:05]} 24. c4 {[%clk 0:01:39]}  Ke7 {[%clk 0:01:03]} 25. Bd2 {[%clk 0:01:37]}  Nc6 {[%clk 0:01:02]} 26. Bc3 {[%clk 0:01:34]}  Kd6 {[%clk 0:01:02]} 27. g3 {[%clk 0:01:32]}  g6 {[%clk 0:01:02]} 28. f4 {[%clk 0:01:30]}  Ke6 {[%clk 0:01:01]} 29. Ke3 {[%clk 0:01:27]}  f5 {[%clk 0:00:55]} 30. h3 {[%clk 0:01:08]}  h6 {[%clk 0:00:40]} 31. exf5+ {[%clk 0:00:56]}  gxf5 {[%clk 0:00:39]} 32. g4 {[%clk 0:00:56]}  exf4+ {[%clk 0:00:37]} 33. Kxf4 {[%clk 0:00:56]}  fxg4 {[%clk 0:00:34]} 34. Kxg4 {[%clk 0:00:51]}  Ne5+ {[%clk 0:00:33]} 35. Bxe5 {[%clk 0:00:40]}  Kxe5 {[%clk 0:00:34]} 36. Kh5 {[%clk 0:00:41]}  Kd4 {[%clk 0:00:28]} 37. Kxh6 {[%clk 0:00:40]}  Kxc4 {[%clk 0:00:28]} 38. Kg7 {[%clk 0:00:34]}  Kc3 {[%clk 0:00:28]} 39. h4 {[%clk 0:00:35]}  Kxc2 {[%clk 0:00:28]} 40. h5 {[%clk 0:00:35]}  Kb3 {[%clk 0:00:29]} 41. h6 {[%clk 0:00:36]}  c4 {[%clk 0:00:29]} 42. h7 {[%clk 0:00:37]}  c3 {[%clk 0:00:30]} 43. h8=Q {[%clk 0:00:37]}  c2 {[%clk 0:00:29]} 44. Qh1 {[%clk 0:00:18]}  Kb2 {[%clk 0:00:28]} 45. Qg2 {[%clk 0:00:18]}  Kb3 {[%clk 0:00:22]} 46. Qf1 {[%clk 0:00:17]}  Kb2 {[%clk 0:00:19]} 47. Qe2 {[%clk 0:00:17]}  Kc3 {[%clk 0:00:14]} 48. Qe1+ {[%clk 0:00:14]}  Kd3 {[%clk 0:00:13]} 49. Qc1 {[%clk 0:00:14]}  Kc3 {[%clk 0:00:13]} 50. Kf6 {[%clk 0:00:14]}  Kb3 {[%clk 0:00:13]} 51. Ke5 {[%clk 0:00:15]}  Kxa4 {[%clk 0:00:10]} 52. Qxc2+ {[%clk 0:00:15]} 1-0


[Site "https://www.chess.com"]